Cogmind - Beta 12 @@@ ROGUE MODE // 2023.04.09 @ 00:11:09 Player: ShuSh Result: Escaped! Performance ------------- Evolutions (9) 4500 Regions Visited (24) 4800 Robots Destroyed (205) 1025 Value Destroyed (13651) 13651 Prototype IDs (45) 900 Alien Tech Used (0) 0 Bonus (12237) 12237 TOTAL SCORE: 37113 Bonus ------- High Alert Combat Kills 1019 Follower Combat Kills 3464 Entered Garrisons 1600 Used RIF Installer 4000 Aligned with FarCom 300 Win 3000 Friendly Fire -1146 Cogmind --------- Core Integrity 1573/1600 Matter 189/300 Energy 568/580 System Corruption 1% Temperature Cool (6) Movement Treading (160) Location To Epsilon Eridani Parts ------- > --- POWER (2) -------- Particle Reactor Particle Reactor > --- PROPULSION (4) --- Improved Heavy Treads Improved Heavy Treads > --- UTILITY (16) ----- Advanced Cooling System High-capacity Storage Unit Advanced Targeting Computer Advanced Target Analyzer Matter Filter Improved Kinecellerator Advanced Weapon Cycler Improved Heavy Armor Plating Medium Insulated Plating Medium Insulated Plating EM Disruption Field Relay Coupler [NC] (12) Relay Coupler [NC] (51) Relay Coupler [Sentry] (31) Relay Coupler [Specialist] (27) > --- WEAPON (3) ------- Advanced KE Penetrator (fused) Heavy Linear Accelerator > --- INVENTORY (20) --- Quantum Reactor Improved Heavy Treads Advanced Heat Sink Matter Compressor (250) Matter Compressor (250) Relay Coupler [Specialist] (31) Long-range Tractor Beam Trap Reconfigurator Enhanced Nova Cannon Heavy Machine Gun KE Penetrator Railgun Advanced KE Penetrator Fusion Bomb Launcher Advanced Remote Datajack Plasma Lance Peak State ------------ > --- POWER ------------ Particle Reactor Particle Reactor > --- PROPULSION ------- Improved Heavy Treads Improved Heavy Treads > --- UTILITY ---------- High-capacity Storage Unit Advanced Targeting Computer Advanced Target Analyzer Advanced Target Analyzer Matter Filter Advanced Weapon Cycler Improved Heavy Armor Plating Medium Insulated Plating EM Disruption Field Relay Coupler [NC] Relay Coupler [Grunt] Relay Coupler [Sentry] Relay Coupler [Sentry] Relay Coupler [Specialist] Trap Reconfigurator > --- WEAPON ----------- Railgun Advanced KE Penetrator Advanced KE Penetrator > --- INVENTORY -------- Micro Antimatter Reactor Improved Heavy Treads Advanced Heat Sink Advanced Cooling System Matter Compressor Matter Compressor Medium Insulated Plating Hacking Suite System Shield Relay Coupler [NC] Relay Coupler [Specialist] Long-range Tractor Beam Long-range Tractor Beam KE Penetrator Heavy Linear Accelerator Fusion Bomb Launcher Advanced Remote Datajack Plasma Lance [Rating: 153] Favorites ----------- Power Ion Engine Engine Ion Engine Power Core Neutrino Core Reactor Antimatter Reactor Propulsion Light Treads Treads Light Treads Leg Aluminum Leg Utility Experimental Targeting Computer Device Advanced Weapon Cycler Storage High-capacity Storage Unit Processor Experimental Targeting Computer Hackware Relay Coupler [Grunt] Protection Layered Light Armor Plating Weapon KE Penetrator Energy Gun Small Laser Ballistic Gun KE Penetrator Ballistic Cannon Heavy Linear Accelerator Launcher Fusion Bomb Launcher Special Weapon Remote Datajack Impact Weapon Impact Mace Slashing Weapon Great Axe Piercing Weapon Plasma Lance Special Melee Weapon Datajack Build | -11 -10 -10 -10 -9 -8 -8 -8 -7 -7 -7 -7 -6 -6 -5 -5 -5 -5 -4 -4 -4 -4 -3 -2 -1 ------- Run | Jun Mat Min Exi Min Mat Gar Mat Fac Gar Fac Gar Fac Gar Fac Gar Fac Gar Fac Gar Fac Gar Res Res Acc Slots Evolved 18 | . . . . . 4 . . 2 . . . 2 . 2 . . . 2 . . . 2 2 2 Power 1 | . . . . . . . . . . . . . . . . . . . . . . 1 . . Propulsion 2 | . . . . . 1 . . . . . . 1 . . . . . . . . . . . . Utility 14 | . . . . . 3 . . 2 . . . 1 . 2 . . . 1 . . . 1 2 2 Weapon 1 | . . . . . . . . . . . . . . . . . . 1 . . . . . . Parts Attached 514 | . 15 . . . 26 39 23 23 34 16 46 26 12 25 17 2 21 2 28 4 35 16 47 57 Power 24 | . 2 . . . 1 3 2 3 . . 3 1 . 1 . . . 1 . . 1 2 2 2 Engine 11 | . 2 . . . 1 2 1 3 . . 1 1 . . . . . . . . . . . . Core 6 | . . . . . . 1 1 . . . 2 . . 1 . . . . . . 1 . . . Reactor 7 | . . . . . . . . . . . . . . . . . . 1 . . . 2 2 2 Propulsion 44 | . 6 . . . 6 5 2 1 4 . 4 1 . 2 4 . 1 . 1 . 4 1 . 2 Treads 44 | . 6 . . . 6 5 2 1 4 . 4 1 . 2 4 . 1 . 1 . 4 1 . 2 Leg . | . . . . . . . . . . . . . . . . . . . . . . . . . Wheel . | . . . . . . . . . . . . . . . . . . . . . . . . . Hover . | . . . . . . . . . . . . . . . . . . . . . . . . . Flight . | . . . . . . . . . . . . . . . . . . . . . . . . . Utility 204 | . 5 . . . 6 14 8 6 16 12 15 11 3 9 5 . 6 1 15 2 10 3 26 31 Device 107 | . 1 . . . 3 4 3 2 12 7 6 4 . 5 . . 3 . 6 2 8 1 19 21 Storage 6 | . 2 . . . . 1 . . . . . . . . . . . . 1 . 1 . 1 . Processor 11 | . 2 . . . . 1 . . 1 . . 2 . 1 . . . . . . . 2 . 2 Hackware 48 | . . . . . 1 5 . 4 2 3 6 3 2 1 4 . 2 1 5 . 1 . 3 5 Protection 32 | . . . . . 2 3 5 . 1 2 3 2 1 2 1 . 1 . 3 . . . 3 3 Artifact . | . . . . . . . . . . . . . . . . . . . . . . . . . Weapon 242 | . 2 . . . 13 17 11 13 14 4 24 13 9 13 8 2 14 . 12 2 20 10 19 22 Energy Gun 4 | . . . . . . 2 . . . . 1 . . . . . . . . . 1 . . . Energy Cannon . | . . . . . . . . . . . . . . . . . . . . . . . . . Ballistic Gun 116 | . 2 . . . 7 9 8 5 7 2 12 6 3 5 3 1 7 . 7 1 9 5 7 10 Ballistic Cannon 1 | . . . . . . . . . . . . . . . . . . . . . . . . 1 Launcher 4 | . . . . . . . . . . . . . . . . . . . . . . . 3 1 Special Weapon 66 | . . . . . . . . 5 3 2 6 2 3 6 3 1 5 . 5 1 5 5 6 8 Impact Weapon 6 | . . . . . . . . . . . . . . 2 2 . 2 . . . . . . . Slashing Weapon 30 | . . . . . 6 4 1 2 4 . 5 5 3 . . . . . . . . . . . Piercing Weapon 10 | . . . . . . . . . . . . . . . . . . . . . 5 . 3 2 Special Melee Weapon 5 | . . . . . . 2 2 1 . . . . . . . . . . . . . . . . Unidentified Prototypes 8 | . . . . . . . 1 2 . . . 1 . 1 . . . . . . 1 . 2 . Corrupted Parts 3 | . . . . . . . . . . . . . . 1 2 . . . . . . . . . System Corruption 17 | . . . . . . . . . . . . . . 6 11 . . . . . . . . . Parts Lost 19 | . 2 . . . . 7 . 1 . 1 . . . 1 1 . . . . . 1 1 3 1 Power 1 | . . . . . . 1 . . . . . . . . . . . . . . . . . . Propulsion 6 | . 1 . . . . 3 . 1 . . . . . 1 . . . . . . . . . . Utility 10 | . 1 . . . . 1 . . . 1 . . . . 1 . . . . . 1 1 3 1 Weapon 2 | . . . . . . 2 . . . . . . . . . . . . . . . . . . Highest Loss Streak 3 | . 1 . . . . 3 . 1 . 1 . . . 1 1 . . . . . 1 1 1 1 To Critical Strikes . | . . . . . . . . . . . . . . . . . . . . . . . . . Average Slot Usage (%) 95 | . 97 100 100 100 99 97 99 98 92 92 99 98 99 94 95 94 94 89 93 94 92 85 90 87 Engine 4 | . 14 14 14 14 9 7 8 2 7 7 3 4 6 4 . . . . . . . . . . Core 1 | . . . . . . 1 . 3 . . 3 1 . . 5 5 5 3 . . 2 3 . . Reactor 1 | . . . . . . . . . . . . . . . . . . 1 5 5 2 1 7 7 Treads 20 | . 26 28 28 28 26 25 27 23 23 23 23 26 26 20 20 17 17 15 15 15 14 9 8 8 Device 8 | . 7 . . . 9 7 . 5 6 5 9 3 . 4 6 5 6 10 13 15 14 13 12 13 Storage 6 | . 14 14 14 14 9 9 9 7 7 7 7 6 6 5 5 5 5 5 5 5 5 4 4 4 Processor 9 | . 4 14 14 14 9 14 9 7 7 7 7 6 6 9 11 11 11 10 10 10 10 14 16 11 Hackware 17 | . . . . . 8 5 18 23 15 17 19 27 33 28 19 23 27 26 18 21 21 19 21 20 Protection 6 | . . . . . 8 9 8 7 7 6 7 5 5 5 10 11 5 5 8 5 5 3 4 10 Ballistic Gun 13 | . 24 28 28 28 14 15 14 12 11 13 11 7 6 6 6 11 8 10 14 11 12 12 11 10 Naked Turns . | . . . . . . . . . . . . . . . . . . . . . . . . . Heaviest Build 150 | 10 29 28 28 28 37 57 63 67 73 73 63 63 62 78 78 73 75 77 89 85 85 114 133 150 Greatest Support 150 | 20 46 46 46 46 69 62 60 69 76 76 69 80 80 86 120 120 120 120 120 120 150 150 145 150 Greatest Overweight (x) 1 | . . . . . . 1 1 1 1 1 1 . . 1 . . . . . . 1 . . . Average Overweight (x) . | . . . . . . . . . . . . . . . . . . . . . . . . . Largest Inventory Capacity 30 | . 15 15 15 15 15 20 20 20 20 20 20 20 20 20 20 20 20 20 20 20 30 20 20 20 Average Capacity 18 | . 12 15 15 15 15 19 20 20 20 20 20 20 20 20 20 20 20 20 20 20 20 20 20 20 Most Carried 20 | . 15 15 15 15 15 20 20 20 20 20 20 20 20 20 20 20 20 20 20 20 20 20 20 20 Average Carried 18 | . 10 15 14 15 14 18 19 19 19 19 19 19 19 19 19 20 19 19 19 20 19 19 19 18 Final Capacity 20 | 8 15 15 15 15 15 20 20 20 20 20 20 20 20 20 20 20 20 20 20 20 20 20 20 20 Final Carried 20 | 6 15 15 15 15 15 20 20 20 20 20 20 20 20 20 20 20 20 20 20 20 20 19 20 17 Class Distribution -------------------- 31% | Botlord-Mutant 30% | Bothacker-Mutant 15% | Mutant 15% | Botlord-Gunner 6% | Scavenger-Mutant Dominant Class ---------------- Mutant | -10/Materials Mutant | -10/Mines Mutant | -10/Exiles Mutant | -9/Mines Mutant | -8/Materials Scavenger-Mutant | -8/Garrison Bothacker-Mutant | -8/Materials Bothacker-Mutant | -7/Factory Bothacker-Mutant | -7/Garrison Bothacker-Mutant | -7/Factory Bothacker-Mutant | -7/Garrison Bothacker-Mutant | -6/Factory Botlord-Mutant | -6/Garrison Botlord-Mutant | -5/Factory Botlord-Mutant | -5/Garrison Botlord-Mutant | -5/Factory Botlord-Mutant | -5/Garrison Botlord-Mutant | -4/Factory Botlord-Gunner | -4/Garrison Botlord-Mutant | -4/Factory Botlord-Mutant | -4/Garrison Botlord-Gunner | -3/Research Botlord-Gunner | -2/Research Botlord-Gunner | -1/Access Resources | -11 -10 -10 -10 -9 -8 -8 -8 -7 -7 -7 -7 -6 -6 -5 -5 -5 -5 -4 -4 -4 -4 -3 -2 -1 ----------- Run | Jun Mat Min Exi Min Mat Gar Mat Fac Gar Fac Gar Fac Gar Fac Gar Fac Gar Fac Gar Fac Gar Res Res Acc Matter Collected 11509 | 186 300 . . . 595 800 356 351 732 497 841 287 222 360 431 . 607 71 1162 95 680 342 1706 888 Remotely 2349 | . . . . . . 55 . . 210 239 67 199 . . . . 69 . 275 89 72 . 487 587 Salvage Created 10932 | . 597 . . . 736 1016 246 143 480 494 410 207 119 355 210 . 558 . 982 . 929 512 1860 1078 Parts 537 | . 32 . . . 37 53 16 9 23 29 14 9 10 18 8 . 28 . 35 . 29 15 107 65 Haulers Intercepted 5 | . 2 . . . 1 . 1 1 . . . . . . . . . . . . . . . . Recyclers Shooed 4 | . . . . . . . . . . . . . . . . . . . . . . . 3 1 Parts Field Recycled . | . . . . . . . . . . . . . . . . . . . . . . . . . Retrieved Matter . | . . . . . . . . . . . . . . . . . . . . . . . . . Parts Self-Destructed . | . . . . . . . . . . . . . . . . . . . . . . . . . Prevented . | . . . . . . . . . . . . . . . . . . . . . . . . . Kills | -11 -10 -10 -10 -9 -8 -8 -8 -7 -7 -7 -7 -6 -6 -5 -5 -5 -5 -4 -4 -4 -4 -3 -2 -1 ------- Run | Jun Mat Min Exi Min Mat Gar Mat Fac Gar Fac Gar Fac Gar Fac Gar Fac Gar Fac Gar Fac Gar Res Res Acc Combat Hostiles Destroyed 168 | . 13 . . . 13 23 3 2 11 9 9 1 3 4 1 . 15 . 15 . 4 6 23 13 Melee 3 | . . . . . . 3 . . . . . . . . . . . . . . . . . . Guns 159 | . 13 . . . 13 20 3 2 11 9 9 1 3 4 1 . 13 . 15 . 4 6 21 11 AOE 4 | . . . . . . . . . . . . . . . . . . . . . . . 2 2 Classes Destroyed 16 | . 4 . . . 3 1 1 1 . . . 1 . 1 . . . . . . . 2 1 1 Worker 15 | . . . . . 1 . . . . 1 . 2 . . . . . . . . . . 7 4 Builder 5 | . . . . . . . . . . . . . . . . . . . . . . . 3 2 Hauler 5 | . 2 . . . 1 . 1 1 . . . . . . . . . . . . . . . . Recycler 4 | . . . . . . . 1 . . . . 1 . . . . . . . . . . 1 1 Operator 1 | . 1 . . . . . . . . . . . . . . . . . . . . . . . Watcher 1 | . . . . . . . . . . . . . . . . . . . . . . . . 1 Swarmer 41 | . 3 . . . . 4 1 . 4 1 4 . 1 . 1 . 10 . 4 . . . 3 5 Saboteur 1 | . . . . . . . . . . . . . . . . . . . . . . 1 . . Grunt 71 | . 10 . . . 7 13 1 . 4 4 5 . . 1 . . 1 . 8 . 3 4 8 2 Brawler 2 | . . . . . . . . . . . . 1 . . . . . . . . . 1 . . Duelist 3 | . . . . . 1 . . . . . . . . . . . . . 1 . . . 1 . Sentry 19 | . . . . . 5 5 1 . 2 2 . . . 1 . . . . . . 1 . 1 1 Demolisher 1 | . . . . . . . . . . . . . . . . . . . . . . 1 . . Hunter 5 | . . . . . . 1 . . . . . . 1 . . . 2 . . . 1 . . . Programmer 29 | . . . . . . . . 2 1 3 . . 1 2 . . 2 . 2 . . . 10 6 Behemoth 2 | . . . . . . . . . . . . . . 1 . . . . 1 . . . . . Best Kill Streak 8 | . 4 . . . 4 4 1 1 4 6 4 1 1 2 1 . 4 . 4 . 2 5 4 8 Combat Bots Only 6 | . 4 . . . 4 4 1 1 4 6 4 1 1 2 1 . 4 . 4 . 2 5 4 5 Max Kills in Single Turn 2 | . 1 . . . 1 1 1 1 1 1 1 1 1 1 1 . 2 . 2 . 1 2 2 2 Gunslinging 1 | . . . . . . . . . . . . . . . . . 1 . 1 . . . . . Exploded 2 | . . . . . . . . . . . . . . . . . . . . . . . 2 2 Melee 1 | . . . . . . 1 . . . . . . . . . . . . . . . . . . Uniques/NPCs Destroyed . | . . . . . . . . . . . . . . . . . . . . . . . . . Combat | -11 -10 -10 -10 -9 -8 -8 -8 -7 -7 -7 -7 -6 -6 -5 -5 -5 -5 -4 -4 -4 -4 -3 -2 -1 -------- Run | Jun Mat Min Exi Min Mat Gar Mat Fac Gar Fac Gar Fac Gar Fac Gar Fac Gar Fac Gar Fac Gar Res Res Acc Damage Taken 11036 | . 604 . . . 1148 1765 59 349 1034 692 585 97 185 490 285 . 690 . 684 91 337 265 1061 615 Core 1058 | . 101 . . . 76 250 6 44 46 72 65 16 30 21 . . 67 . 103 . 22 18 94 27 Absorbed by Shields 1163 | . . . . . . . . . . . . . . . . . . . . . . 82 1081 . Reduced by Siege Mode 24 | . . . . . . . . . . . . . . . . . . . . . . . 19 5 Regen/Repaired (Parts) 14 | . . . . . . . . . . . . 14 . . . . . . . . . . . . Core Remaining (%) 82 | 100 . . . 59 . . 39 . . . 67 . 94 . . . 91 . . . 89 98 93 98 Volleys Fired 741 | . 53 . . . 63 76 14 18 52 45 61 11 10 35 16 . 32 . 87 3 29 18 80 38 Largest 3 | . 2 . . . 2 2 2 2 2 2 2 2 2 2 2 . 2 . 3 1 3 3 3 3 Hottest 122 | . 60 . . . 46 88 50 50 50 50 56 60 60 60 63 . 68 . 101 10 101 101 101 122 Shots Fired 1419 | . 106 . . . 127 152 28 29 92 78 85 15 14 55 20 . 56 . 173 3 54 35 211 86 Gun 1250 | . 106 . . . 127 152 28 22 87 68 50 8 8 41 6 . 51 . 155 . 47 27 196 71 Cannon . | . . . . . . . . . . . . . . . . . . . . . . . . . Launcher 3 | . . . . . . . . . . . . . . . . . . . . . . . 2 1 Special 166 | . . . . . . . . 7 5 10 35 7 6 14 14 . 5 . 18 3 7 8 13 14 Kinetic 1226 | . 84 . . . 127 150 28 22 87 68 50 8 8 41 6 . 51 . 155 . 47 27 196 71 Thermal 24 | . 22 . . . . 2 . . . . . . . . . . . . . . . . . . Explosive 3 | . . . . . . . . . . . . . . . . . . . . . . . 2 1 Electromagnetic . | . . . . . . . . . . . . . . . . . . . . . . . . . Robot Hit Streak 42 | . 16 . . . 28 23 10 9 23 15 14 22 14 30 35 . 22 . 38 41 42 17 31 10 Robot Miss Streak 6 | . 3 . . . 2 5 4 1 3 3 3 3 . 1 1 . 1 . 2 . 2 1 3 6 Penetration Max 2 | . . . . . . . . . . . 1 . . 1 . . 1 . 1 . 1 1 1 2 Secondary Targets 26 | . . . . . 1 3 . . 1 3 1 . . . . . 3 . 3 . 2 4 5 . Max Gunslinging Chain 1 | . . . . . 1 1 . . 1 1 1 . . . . . 1 . 1 . 1 1 1 . Shots Hit Robots 1128 | . 77 . . . 108 135 18 25 74 64 63 15 11 49 20 . 45 . 125 3 45 31 167 53 Core Hits 396 | . 33 . . . 30 51 8 6 21 19 19 3 4 9 2 . 15 . 41 . 16 12 76 31 Critical Kills 19 | . . . . . 1 1 . . 1 . . . 1 1 . . . . . . 2 4 4 4 Critical Parts Destroyed 27 | . 1 . . . . 1 . . . . 1 . . 2 3 . . . 1 . 1 1 10 6 Critical Strikes 50 | . 1 . . . 1 2 . . 1 . 1 . 1 3 3 . . . 1 . 5 6 15 10 Destroy 44 | . 1 . . . 1 2 . . 1 . 1 . 1 3 . . . . 1 . 3 6 14 10 Smash 3 | . . . . . . . . . . . . . . . 3 . . . . . . . . . Impale 3 | . . . . . . . . . . . . . . . . . . . . . 2 . 1 . Melee Attacks 154 | . . . . . 15 33 7 4 9 . 10 7 21 2 4 . 8 . . . 23 . 8 3 Impact 14 | . . . . . . . . . . . . . . 2 4 . 8 . . . . . . . Slashing 89 | . . . . . 15 20 5 2 9 . 10 7 21 . . . . . . . . . . . Piercing 34 | . . . . . . . . . . . . . . . . . . . . . 23 . 8 3 Sneak Attacks 18 | . . . . . . 9 1 . . . . 3 . . . . . . . . . . 5 . Combat Hostiles . | . . . . . . . . . . . . . . . . . . . . . . . . . Follow-up Attacks . | . . . . . . . . . . . . . . . . . . . . . . . . . Damage Inflicted 23572 | . 778 . . . 1590 1760 278 371 1259 1159 1012 334 105 883 391 . 1207 . 2996 . 1747 602 5095 2005 Guns 20194 | . 777 . . . 1580 1530 278 368 1259 1155 659 122 105 883 42 . 1096 . 2996 . 840 588 4320 1596 Cannons . | . . . . . . . . . . . . . . . . . . . . . . . . . Explosions 748 | . . . . . . . . . . . . . . . . . . . . . . . 339 409 Melee 2577 | . . . . . . 230 . . . . 353 212 . . 349 . 111 . . . 907 . 415 . Ramming 53 | . 1 . . . 10 . . 3 . 4 . . . . . . . . . . . 14 21 . Kinetic 19970 | . 584 . . . 1580 1499 278 368 1259 1155 659 122 105 883 42 . 1096 . 2996 . 840 588 4320 1596 Thermal 224 | . 193 . . . . 31 . . . . . . . . . . . . . . . . . . Explosive 660 | . . . . . . . . . . . . . . . . . . . . . . . 339 321 Electromagnetic 88 | . . . . . . . . . . . . . . . . . . . . . . . . 88 Impact 460 | . . . . . . . . . . . . . . . 349 . 111 . . . . . . . Slashing 795 | . . . . . . 230 . . . . 353 212 . . . . . . . . . . . . Piercing 1322 | . . . . . . . . . . . . . . . . . . . . . 907 . 415 . Highest Corruption 22 | . . . . . 2 2 2 . 2 3 3 . . 8 19 19 22 . 2 2 2 . 10 1 Average Corruption 4 | . . . . . 2 2 2 . 1 2 3 . . 2 10 19 19 . 1 2 2 . 7 1 Corruption Purged . | . . . . . . . . . . . . . . . . . . . . . . . . . Corruption Blocked . | . . . . . . . . . . . . . . . . . . . . . . . . . Effects 291 | . . . . . 10 23 12 . 13 14 25 . . 12 22 3 60 . 21 1 25 . 48 2 Message Errors 86 | . . . . . 3 7 3 . 5 6 10 . . 3 7 1 17 . 6 . 7 . 10 1 Matter Fused 63 | . . . . . 2 4 5 . 2 3 1 . . 2 7 1 13 . 4 . 6 . 13 . Heat Flow Errors 38 | . . . . . 2 2 3 . . 1 2 . . 2 . 1 13 . 5 1 2 . 4 . Energy Discharges 32 | . . . . . 1 2 . . 2 1 2 . . 1 4 . 3 . 6 . 4 . 6 . Parts Rejected 4 | . . . . . . 1 . . . . 1 . . . . . 1 . . . . . 1 . Parts Fused 4 | . . . . . . . . . 1 . . . . . . . . . . . . . 3 . Data Loss (minor) 29 | . . . . . 1 1 . . . 2 6 . . 3 1 . 6 . . . 4 . 4 1 Data Loss (major) 13 | . . . . . . 1 1 . . 1 2 . . 1 . . 3 . . . . . 4 . Misfires 12 | . . . . . 1 3 . . 1 . . . . . 2 . 2 . . . . . 3 . Alerts 5 | . . . . . . 1 . . . . . . . . 1 . 2 . . . 1 . . . Weapon Failures 5 | . . . . . . 1 . . 2 . 1 . . . . . . . . . 1 . . . Overload Shots . | . . . . . . . . . . . . . . . . . . . . . . . . . Overflow Damage 746 | . . . . . . 4 . . . . 29 27 . . 349 . 60 . . . 27 . 232 18 Projectiles . | . . . . . . . . . . . . . . . . . . . . . . . . . Explosions 18 | . . . . . . . . . . . . . . . . . . . . . . . . 18 Melee 728 | . . . . . . 4 . . . . 29 27 . . 349 . 60 . . . 27 . 232 . Knockbacks 1 | . . . . . . . . . . . . . . . . . . . . . . . 1 . Impact 1 | . . . . . . . . . . . . . . . . . . . . . . . 1 . Kinetic . | . . . . . . . . . . . . . . . . . . . . . . . . . Secondary . | . . . . . . . . . . . . . . . . . . . . . . . . . Self-Inflicted Damage 50 | . . . . . . . . . . . . . . . . . . . . . . . 50 . Shots 2 | . . . . . . . . . . . . . . . . . . . . . . . 2 . Rammed 7 | . 1 . . . 1 . . 1 . . . . . . . . . . . . . 1 3 . Targets Rammed 8 | . 1 . . . 1 . . 1 . 1 . . . . . . . . . . . 1 3 . Kicked . | . . . . . . . . . . . . . . . . . . . . . . . . . Crushed 1 | . . . . . . . . . . 1 . . . . . . . . . . . . . . Highest Temperature 455 | . 250 . . . 226 214 275 24 224 249 243 4 . 245 18 81 322 . 325 234 185 8 196 455 Average Temperature 85 | . 105 . . . 94 56 88 9 77 74 41 3 . 50 10 40 98 . 105 120 66 5 64 94 Received Heat Transfer 2770 | . 297 . . . 504 792 18 99 297 168 222 33 18 60 18 . . . 111 . 18 29 68 18 Effects 7 | . 1 . . . . . 2 . . 1 . . . . . . 1 . . . . . . 2 Shutdowns 1 | . . . . . . . . . . . . . . . . . . . . . . . . 1 Energy Bleed 3 | . 1 . . . . . 1 . . 1 . . . . . . . . . . . . . . Interference 1 | . . . . . . . 1 . . . . . . . . . . . . . . . . . Matter Decay 1 | . . . . . . . . . . . . . . . . . 1 . . . . . . . Short Circuit 1 | . . . . . . . . . . . . . . . . . . . . . . . . 1 Siege Activations 9 | . . . . . . . . . . . . . . . . . . . 1 . . . 6 2 Total Turns 90 | . . . . . . . . . . . . . . . . . . . 6 . . . 75 9 Longest Duration 21 | . . . . . . . . . . . . . . . . . . . 6 . . . 21 8 Robots Corrupted . | . . . . . . . . . . . . . . . . . . . . . . . . . Combat Hostiles . | . . . . . . . . . . . . . . . . . . . . . . . . . Parts Fried 6 | . . . . . . . . . . . . . . . 2 . 2 . . . 1 . . 1 Impact Corruptions 5 | . . . . . . . . . . . . . . . 3 . 2 . . . . . . . Robots Melted . | . . . . . . . . . . . . . . . . . . . . . . . . . Combat Hostiles . | . . . . . . . . . . . . . . . . . . . . . . . . . Parts Melted 2 | . 2 . . . . . . . . . . . . . . . . . . . . . . . Heat Transferred 524 | . 450 . . . . 74 . . . . . . . . . . . . . . . . . . Parts Sabotaged . | . . . . . . . . . . . . . . . . . . . . . . . . . Parts Stolen . | . . . . . . . . . . . . . . . . . . . . . . . . . Parts Stripped . | . . . . . . . . . . . . . . . . . . . . . . . . . Power Chain Reactions . | . . . . . . . . . . . . . . . . . . . . . . . . . Missiles Intercepted . | . . . . . . . . . . . . . . . . . . . . . . . . . Alert | -11 -10 -10 -10 -9 -8 -8 -8 -7 -7 -7 -7 -6 -6 -5 -5 -5 -5 -4 -4 -4 -4 -3 -2 -1 ------- Run | Jun Mat Min Exi Min Mat Gar Mat Fac Gar Fac Gar Fac Gar Fac Gar Fac Gar Fac Gar Fac Gar Res Res Acc Peak Influence 1398 | . 188 80 . . 282 1114 564 95 542 304 825 450 353 189 124 65 556 291 1398 823 1382 937 536 340 Initial 777 | . . 70 . . . 144 542 29 66 284 77 432 135 184 32 65 45 291 203 733 576 777 467 251 Average 358 | . 68 71 . . 78 572 430 27 230 201 399 339 294 69 63 65 255 291 753 766 1027 866 407 236 Maximum Alert Level 4 | . . . . . 1 4 2 . 2 1 3 2 1 . . . 2 1 4 3 4 3 2 1 Low Security (%) 39 | . 100 100 . 100 80 11 12 100 46 56 17 8 8 100 100 100 26 . . . . . 1 22 Level 1 26 | . . . . . 19 21 17 . 42 43 36 42 91 . . . 55 100 13 . . . 54 77 Level 2 16 | . . . . . . 29 70 . 10 . 33 48 . . . . 17 . 35 . 7 . 43 . Level 3 12 | . . . . . . 31 . . . . 12 . . . . . . . 35 100 47 100 . . Level 4 5 | . . . . . . 4 . . . . . . . . . . . . 15 . 44 . . . Level 5 . | . . . . . . . . . . . . . . . . . . . . . . . . . High Security . | . . . . . . . . . . . . . . . . . . . . . . . . . Max Security . | . . . . . . . . . . . . . . . . . . . . . . . . . Squads Dispatched 38 | . 4 . . . 5 . . 3 . 3 . 4 . 2 . . . . . . . 4 9 4 Investigation 2 | . 1 . . . . . . . . . . . . . . . . . . . . 1 . . Extermination 11 | . . . . . . . . 2 . 2 . 1 . 1 . . . . . . . . 4 1 Reinforcement 12 | . 3 . . . 1 . . . . . . 2 . 1 . . . . . . . 1 3 1 Assault 5 | . . . . . . . . . . . . 1 . . . . . . . . . 2 2 . Garrison 8 | . . . . . 4 . . 1 . 1 . . . . . . . . . . . . . 2 Intercept . | . . . . . . . . . . . . . . . . . . . . . . . . . Searches Triggered . | . . . . . . . . . . . . . . . . . . . . . . . . . Construction Impeded 2 | . . . . . . . . . . . . . . 1 . . . . . . . . 1 . Haulers Reinforced 2 | . . . . . . . . . . . . 1 . . . . . . . . . . . 1 Active Scanning Responses . | . . . . . . . . . . . . . . . . . . . . . . . . . Cargo Convoy Interrupts 1 | . . . . . . . . 1 . . . . . . . . . . . . . . . . Stealth | -11 -10 -10 -10 -9 -8 -8 -8 -7 -7 -7 -7 -6 -6 -5 -5 -5 -5 -4 -4 -4 -4 -3 -2 -1 --------- Run | Jun Mat Min Exi Min Mat Gar Mat Fac Gar Fac Gar Fac Gar Fac Gar Fac Gar Fac Gar Fac Gar Res Res Acc Distress Signals 17 | . 2 . . . 3 1 2 2 . 1 . . . . . . . . . 1 . 1 3 1 Communications Jammed . | . . . . . . . . . . . . . . . . . . . . . . . . . Distress Signals . | . . . . . . . . . . . . . . . . . . . . . . . . . Times Spotted 401 | . 28 . . . 19 34 7 11 17 18 34 12 9 16 10 . 31 . 38 7 25 24 38 23 Peak Tracking Total 12 | . 4 . . . 4 6 3 2 4 9 12 4 3 4 5 . 5 . 6 3 8 8 6 4 Tactical Retreats 16 | . 3 . . . 2 1 1 . . . 2 . . . . . . . 2 . . 1 4 . Traps | -11 -10 -10 -10 -9 -8 -8 -8 -7 -7 -7 -7 -6 -6 -5 -5 -5 -5 -4 -4 -4 -4 -3 -2 -1 ------- Run | Jun Mat Min Exi Min Mat Gar Mat Fac Gar Fac Gar Fac Gar Fac Gar Fac Gar Fac Gar Fac Gar Res Res Acc Traps Triggered 16 | . 1 . . . 1 4 1 . 1 2 . . . 1 . . . . 2 . 1 1 1 . Indirectly . | . . . . . . . . . . . . . . . . . . . . . . . . . Trap Hack Attempts . | . . . . . . . . . . . . . . . . . . . . . . . . . Triggered . | . . . . . . . . . . . . . . . . . . . . . . . . . Disarmed . | . . . . . . . . . . . . . . . . . . . . . . . . . Reprogrammed . | . . . . . . . . . . . . . . . . . . . . . . . . . Reused 11 | . . . . . . . 3 . . . . . . 2 . . . . . . . . 3 3 Traps Reconfigurated 31 | . . . . . . 3 6 . 1 2 . 2 . 3 . . . . . . . . 11 3 Traps Extracted . | . . . . . . . . . . . . . . . . . . . . . . . . . Installed . | . . . . . . . . . . . . . . . . . . . . . . . . . Triggered 15 | . . 1 . . . . 3 2 . . . . . 2 . . . . . . . . 4 3 Machines | -11 -10 -10 -10 -9 -8 -8 -8 -7 -7 -7 -7 -6 -6 -5 -5 -5 -5 -4 -4 -4 -4 -3 -2 -1 ---------- Run | Jun Mat Min Exi Min Mat Gar Mat Fac Gar Fac Gar Fac Gar Fac Gar Fac Gar Fac Gar Fac Gar Res Res Acc Machines Disabled 42 | . . . . . . 4 . . 4 . 5 5 2 1 1 . 4 . 7 1 3 1 2 2 Max in Single Turn 1 | . . . . . . 1 . . 1 . 1 1 1 . 1 . 1 . 1 . 1 . 1 1 Garrison Access 5 | . . . . . . . . . . . . . . . . . . . . . . 2 1 2 Garrison Relay 25 | . . . . . . 4 . . 2 . 5 . 2 . 1 . 2 . 6 . 3 . . . Energy Cycler 1 | . . . . . . . . . . . . . . . . . . . . . . . . 1 Machines Repaired . | . . . . . . . . . . . . . . . . . . . . . . . . . Machines Sabotaged . | . . . . . . . . . . . . . . . . . . . . . . . . . Overloaded Fab Kills . | . . . . . . . . . . . . . . . . . . . . . . . . . Hacking | -11 -10 -10 -10 -9 -8 -8 -8 -7 -7 -7 -7 -6 -6 -5 -5 -5 -5 -4 -4 -4 -4 -3 -2 -1 --------- Run | Jun Mat Min Exi Min Mat Gar Mat Fac Gar Fac Gar Fac Gar Fac Gar Fac Gar Fac Gar Fac Gar Res Res Acc Machines Accessed 59 | . 5 . 2 . 7 3 3 7 1 2 2 5 . 3 . 1 1 1 2 2 3 2 4 3 Terminals 40 | . 5 . . . 6 3 3 4 1 1 2 2 . 2 . . 1 . 2 1 3 . 3 1 Fabricators . | . . . . . . . . . . . . . . . . . . . . . . . . . Repair Stations 1 | . . . . . . . . . . . . 1 . . . . . . . . . . . . Recycling Units . | . . . . . . . . . . . . . . . . . . . . . . . . . Scanalyzers 3 | . . . . . . . . 2 . . . 1 . . . . . . . . . . . . Garrison Access 13 | . . . . . 1 . . 1 . 1 . 1 . 1 . 1 . 1 . 1 . 2 1 2 Total Hacks 115 | . 17 . 2 . 20 5 9 14 1 3 3 11 . 4 . 1 1 1 3 3 5 2 6 4 Successful 61 | . 10 . 2 . 13 1 5 9 . 2 1 3 . 4 . 1 . 1 1 1 2 2 1 2 Failed 54 | . 7 . . . 7 4 4 5 1 1 2 8 . . . . 1 . 2 2 3 . 5 2 Catastrophic 9 | . . . . . 1 1 1 . . . 1 . . . . . 1 . . . 1 . 3 . Database Lockouts . | . . . . . . . . . . . . . . . . . . . . . . . . . Manual 42 | . 13 . 1 . 14 . 4 5 . . . . . 3 . . . . . 2 . . . . Terminals 91 | . 17 . . . 19 5 9 9 1 2 3 5 . 3 . . 1 . 3 2 5 . 5 2 Fabricators . | . . . . . . . . . . . . . . . . . . . . . . . . . Repair Stations 4 | . . . . . . . . . . . . 4 . . . . . . . . . . . . Recycling Units . | . . . . . . . . . . . . . . . . . . . . . . . . . Scanalyzers 5 | . . . . . . . . 4 . . . 1 . . . . . . . . . . . . Garrison Access 13 | . . . . . 1 . . 1 . 1 . 1 . 1 . 1 . 1 . 1 . 2 1 2 Terminal Hacks 23 | . 6 . 2 . 3 1 3 2 . 1 1 . . 1 . . . . 1 . 2 . . . Record 2 | . . . 1 . 1 . . . . . . . . . . . . . . . . . . . Robot Analysis 3 | . 2 . . . 1 . . . . . . . . . . . . . . . . . . . Prototype ID Bank 2 | . 2 . . . . . . . . . . . . . . . . . . . . . . . Open Door 2 | . . . . . . 1 . . . . 1 . . . . . . . . . . . . . Open DSF 1 | . . . . . . . . . . 1 . . . . . . . . . . . . . . Emergency Access Points 2 | . . . . . . . . . . . . . . . . . . . 1 . 1 . . . Garrison Index 1 | . . . . . . . . 1 . . . . . . . . . . . . . . . . Unreport Threat 2 | . . . . . . . 2 . . . . . . . . . . . . . . . . . Locate Traps 4 | . 1 . . . . . 1 1 . . . . . 1 . . . . . . . . . . Hauler Manifests 1 | . 1 . . . . . . . . . . . . . . . . . . . . . . . Zone Layout 1 | . . . . . 1 . . . . . . . . . . . . . . . . . . . Security Stations 1 | . . . . . . . . . . . . . . . . . . . . . 1 . . . EX-Prototype ID Bank 1 | . . . 1 . . . . . . . . . . . . . . . . . . . . . Fabricator Hacks . | . . . . . . . . . . . . . . . . . . . . . . . . . Repair Station Hacks 2 | . . . . . . . . . . . . 2 . . . . . . . . . . . . Scan Component 1 | . . . . . . . . . . . . 1 . . . . . . . . . . . . Repair 1 | . . . . . . . . . . . . 1 . . . . . . . . . . . . Recycling Unit Hacks . | . . . . . . . . . . . . . . . . . . . . . . . . . Scanalyzer 2 | . . . . . . . . 2 . . . . . . . . . . . . . . . . Insert Component 1 | . . . . . . . . 1 . . . . . . . . . . . . . . . . Analyze 1 | . . . . . . . . 1 . . . . . . . . . . . . . . . . Garrison Access Hacks 13 | . . . . . 1 . . 1 . 1 . 1 . 1 . 1 . 1 . 1 . 2 1 2 Unlock Access 8 | . . . . . 1 . . 1 . 1 . 1 . 1 . 1 . 1 . 1 . . . . Seal Access 5 | . . . . . . . . . . . . . . . . . . . . . . 2 1 2 Unauthorized Hacks 21 | . 4 . . . 9 . 2 4 . . . . . 2 . . . . . . . . . . Terminals 21 | . 4 . . . 9 . 2 4 . . . . . 2 . . . . . . . . . . Track 3 | . 1 . . . 2 . . . . . . . . . . . . . . . . . . . Assimilate 1 | . . . . . . . . 1 . . . . . . . . . . . . . . . . Botnet 15 | . 3 . . . 5 . 2 3 . . . . . 2 . . . . . . . . . . Disrupt 1 | . . . . . 1 . . . . . . . . . . . . . . . . . . . Operators 1 | . . . . . 1 . . . . . . . . . . . . . . . . . . . Fabricators . | . . . . . . . . . . . . . . . . . . . . . . . . . Repair Stations . | . . . . . . . . . . . . . . . . . . . . . . . . . Recycling Units . | . . . . . . . . . . . . . . . . . . . . . . . . . Scanalyzers . | . . . . . . . . . . . . . . . . . . . . . . . . . Garrison Access . | . . . . . . . . . . . . . . . . . . . . . . . . . Data Cores Recovered 1 | . 1 . . . . . . . . . . . . . . . . . . . . . . . Used . | . . . . . . . . . . . . . . . . . . . . . . . . . Hacking Detections 43 | . 5 . . . 6 2 3 7 1 . 1 4 . 2 . 1 1 1 2 1 2 . 3 1 Full Trace Events 1 | . 1 . . . . . . . . . . . . . . . . . . . . . . . Feedback Events . | . . . . . . . . . . . . . . . . . . . . . . . . . Feedback Blocked . | . . . . . . . . . . . . . . . . . . . . . . . . . Robot Schematics Acquired . | . . . . . . . . . . . . . . . . . . . . . . . . . Robots Built . | . . . . . . . . . . . . . . . . . . . . . . . . . Authchips . | . . . . . . . . . . . . . . . . . . . . . . . . . Time . | . . . . . . . . . . . . . . . . . . . . . . . . . Total Robot Build Rating . | . . . . . . . . . . . . . . . . . . . . . . . . . Part Schematics Acquired 1 | . . . . . . . . 1 . . . . . . . . . . . . . . . . Parts Built . | . . . . . . . . . . . . . . . . . . . . . . . . . Authchips . | . . . . . . . . . . . . . . . . . . . . . . . . . Time . | . . . . . . . . . . . . . . . . . . . . . . . . . Total Part Build Rating . | . . . . . . . . . . . . . . . . . . . . . . . . . Parts Repaired 1 | . . . . . . . . . . . . 1 . . . . . . . . . . . . Time 68 | . . . . . . . . . . . . 68 . . . . . . . . . . . . Parts Recycled . | . . . . . . . . . . . . . . . . . . . . . . . . . Recycled Matter . | . . . . . . . . . . . . . . . . . . . . . . . . . Retrieved Matter . | . . . . . . . . . . . . . . . . . . . . . . . . . Retrieved Components . | . . . . . . . . . . . . . . . . . . . . . . . . . Parts Scanalyzed 1 | . . . . . . . . 1 . . . . . . . . . . . . . . . . Part Schematics Acquired 1 | . . . . . . . . 1 . . . . . . . . . . . . . . . . Parts Damaged . | . . . . . . . . . . . . . . . . . . . . . . . . . Bothacking | -11 -10 -10 -10 -9 -8 -8 -8 -7 -7 -7 -7 -6 -6 -5 -5 -5 -5 -4 -4 -4 -4 -3 -2 -1 ------------ Run | Jun Mat Min Exi Min Mat Gar Mat Fac Gar Fac Gar Fac Gar Fac Gar Fac Gar Fac Gar Fac Gar Res Res Acc Used RIF Installer 8 | . . . . . . 1 . . 1 . 1 . 1 . . . 2 . 1 . 1 . . . Coupler Efficiency 1 | . . . . . . . . . . . . . 1 . . . . . . . . . . . Code Merge 1 | . . . . . . . . . . . . . . . . . . . 1 . . . . . Threat Obfuscator 1 | . . . . . . . . . . . . . . . . . 1 . . . . . . . Zone Cloak 2 | . . . . . . . . . . . 1 . . . . . 1 . . . . . . . Robot Detection 1 | . . . . . . . . . 1 . . . . . . . . . . . . . . . Autoassimilate 1 | . . . . . . . . . . . . . . . . . . . . . 1 . . . Robots Hacked 109 | . . . . . . 3 2 6 4 6 15 6 5 10 6 . 5 . 7 3 5 9 6 11 Non-combat 25 | . . . . . . . 2 2 . 1 . 3 . 5 . . . . . 2 . 1 3 6 Combat 84 | . . . . . . 3 . 4 4 5 15 3 5 5 6 . 5 . 7 1 5 8 3 5 Autoassimilated 1 | . . . . . . . . . . . . . . . . . . . . . . 1 . . Robot Hacks Applied 116 | . . . . . . 3 2 6 4 7 15 7 6 11 6 . 5 . 7 3 5 8 9 12 parse_system 4 | . . . . . . . . . . . 1 . 1 1 . . . . . . . . . 1 no_distress 2 | . . . . . . . . . . . . . . 1 . . . . . . . . 1 . map_earth 1 | . . . . . . . . . . . . . . . . . . . . . . . . 1 drop_inventory 7 | . . . . . . . 1 1 . . . . . 2 . . . . . 1 . . 1 1 deconstruct_bot 1 | . . . . . . . . . . . . 1 . . . . . . . . . . . . purge_threat 2 | . . . . . . . . . . . . . . . . . . . . . . . 2 . block_reporting 1 | . . . . . . . . . . . . . . . . . . . . . . . 1 . map_route 13 | . . . . . . . 1 1 . 1 . 1 . 2 . . . . . 1 . 1 1 4 find_garrison 3 | . . . . . . . . . . 1 . 1 . 1 . . . . . . . . . . disrupt_area 1 | . . . . . . . . . . . 1 . . . . . . . . . . . . . overload_power 1 | . . . . . . . . . . . . . . . . . . . . . . 1 . . amplify_resonance 4 | . . . . . . . . . . . 1 . . . 1 . 2 . . . . . . . reboot_system 1 | . . . . . . . . . . 1 . . . . . . . . . . . . . . go_dormant 1 | . . . . . . . . . . . . . 1 . . . . . . . . . . . overwrite_iff 20 | . . . . . . . . . 1 2 9 1 2 . 1 . 2 . . . . 2 . . formatsys_low 1 | . . . . . . . . . . . . 1 . . . . . . . . . . . . formatsys_high 50 | . . . . . . 3 . 4 3 2 3 2 2 4 4 . 1 . 7 1 4 4 1 5 formatsys_deep 3 | . . . . . . . . . . . . . . . . . . . . . 1 . 2 . Relay Couplers Released 106 | . . . . . . 17 . . 8 . 19 . 9 . 4 . 8 . 30 . 11 . . . Machine Destruction 102 | . . . . . . 17 . . 8 . 19 . 9 . 4 . 8 . 26 . 11 . . . Programmers 4 | . . . . . . . . . . . . . . . . . . . 4 . . . . . Attached 43 | . . . . . . 4 . 3 2 3 6 3 2 1 4 . 2 1 5 . 1 . 3 3 Merged Code Value 204 | . . . . . . . . . . . . . . . . . . . 109 . 95 . . . Fabnet Peak Effective % . | . . . . . . . . . . . . . . . . . . . . . . . . . Robots Rewired 16 | . . . . . . 3 . . . . 4 . . . 3 . . . 6 . . . . . Allies Hacked 5 | . . . . . . . . . . . . . . . . . . . 1 . 2 . 1 1 Hacks Repelled . | . . . . . . . . . . . . . . . . . . . . . . . . . Allies | -11 -10 -10 -10 -9 -8 -8 -8 -7 -7 -7 -7 -6 -6 -5 -5 -5 -5 -4 -4 -4 -4 -3 -2 -1 -------- Run | Jun Mat Min Exi Min Mat Gar Mat Fac Gar Fac Gar Fac Gar Fac Gar Fac Gar Fac Gar Fac Gar Res Res Acc Total Allies 104 | . . . . . . 6 . 4 4 4 16 4 4 4 8 . 3 . 15 1 8 7 11 5 Largest Group 9 | . . . . . . 3 . 2 4 2 6 2 2 2 4 2 2 . 7 8 9 5 4 4 Highest-Rated Group 498 | . . . . . . 98 . 64 96 32 155 61 29 98 143 24 61 . 400 449 498 305 232 261 Highest-Rated Ally 116 | . . . . . . 39 . 32 32 16 32 32 29 49 85 12 49 . 80 80 116 116 64 69 Total Orders 54 | . . . . . . 4 . 2 2 . . 1 . 2 4 . . . 6 . 21 7 3 2 STAY 27 | . . . . . . 2 . 1 1 . . 1 . 1 . . . . 3 . 10 5 2 1 ROAM 5 | . . . . . . . . . . . . . . . 2 . . . . . 3 . . . FOLLOW 22 | . . . . . . 2 . 1 1 . . . . 1 2 . . . 3 . 8 2 1 1 Ally Attacks 506 | . . . . . . 33 . 17 8 13 56 11 8 20 29 4 23 . 68 13 59 49 57 38 Total Damage 14466 | . . . . . . 383 . 524 186 159 1060 652 114 433 579 30 297 . 1984 569 2433 1847 2019 1197 Kills 102 | . . . . . . 8 . 6 3 . 14 6 2 . 4 . 1 . 13 2 17 10 10 6 Allies Corrupted 3 | . . . . . . . . . . . . . . 1 . . . . . . . . 1 1 Allies Melted . | . . . . . . . . . . . . . . . . . . . . . . . . . Intel | -11 -10 -10 -10 -9 -8 -8 -8 -7 -7 -7 -7 -6 -6 -5 -5 -5 -5 -4 -4 -4 -4 -3 -2 -1 ------- Run | Jun Mat Min Exi Min Mat Gar Mat Fac Gar Fac Gar Fac Gar Fac Gar Fac Gar Fac Gar Fac Gar Res Res Acc Robot Analysis Total 3 | . 2 . . . 1 . . . . . . . . . . . . . . . . . . . Derelict Logs Recovered 1 | . . . . 1 . . . . . . . . . . . . . . . . . . . . Drone Launches . | . . . . . . . . . . . . . . . . . . . . . . . . . Drone Recoveries . | . . . . . . . . . . . . . . . . . . . . . . . . . Exploration | -11 -10 -10 -10 -9 -8 -8 -8 -7 -7 -7 -7 -6 -6 -5 -5 -5 -5 -4 -4 -4 -4 -3 -2 -1 ------------- Run | Jun Mat Min Exi Min Mat Gar Mat Fac Gar Fac Gar Fac Gar Fac Gar Fac Gar Fac Gar Fac Gar Res Res Acc Turns Passed 28447 | . 1566 376 482 271 2264 1902 912 2107 1282 919 1303 1324 883 1506 687 66 1327 161 2435 146 2157 579 2157 1635 Spaces Moved 13658 | 1 824 232 301 170 748 833 321 1119 580 363 607 706 419 756 305 38 633 92 1328 78 1098 301 978 827 Core . | . . . . . . . . . . . . . . . . . . . . . . . . . Treads 13611 | . 778 232 301 170 748 833 321 1119 580 363 607 706 419 756 305 38 633 92 1328 78 1098 301 978 827 Legs 47 | 1 46 . . . . . . . . . . . . . . . . . . . . . . . Wheels . | . . . . . . . . . . . . . . . . . . . . . . . . . Hover . | . . . . . . . . . . . . . . . . . . . . . . . . . Flight . | . . . . . . . . . . . . . . . . . . . . . . . . . Fastest Speed 120 | 120 120 160 160 160 160 158 163 160 160 163 163 162 162 162 160 163 163 163 163 163 160 160 160 160 Average Speed 167 | 120 157 160 160 160 167 169 214 175 166 191 164 162 162 178 161 163 163 163 163 163 173 160 160 160 Slowest Speed 243 | 120 160 160 160 160 170 237 243 243 243 243 243 162 162 243 165 163 163 163 163 163 243 160 160 160 Overloaded Moves . | . . . . . . . . . . . . . . . . . . . . . . . . . Propulsion Burnouts . | . . . . . . . . . . . . . . . . . . . . . . . . . Robots Hopped . | . . . . . . . . . . . . . . . . . . . . . . . . . Cave-ins Triggered . | . . . . . . . . . . . . . . . . . . . . . . . . . Exploration Rate (%) 37 | 2 99 38 71 38 51 60 28 27 53 13 60 22 39 16 22 2 60 4 92 3 89 8 23 23 Regions Visited 24 Branch Regions 3 Pre-discovered Areas 3 | . . . 1 2 . . . . . . . . . . . . . . . . . . . . Known Exits Taken 10 | . . . . . 1 . . 1 . 1 . 1 . 1 . 1 . 1 . 1 . 1 1 . Unknown Exits Taken 6 | 1 1 1 1 1 . . 1 . . . . . . . . . . . . . . . . . Scrap Searched 1 | . . 1 . . . . . . . . . . . . . . . . . . . . . . Spaces Dug 68 | . . . . . 15 . 5 2 . . . 4 10 2 . . 3 . . . . . 24 3 Terrain Destroyed 153 | . . . . . 15 . 5 2 . . . 4 11 2 1 . 6 . 18 . 3 . 45 41 Melee 47 | . . . . . 15 . 5 2 . . . 4 10 2 . . 3 . . . . . 3 3 Projectile 32 | . . . . . . . . . . . . . 1 . 1 . 3 . 18 . 3 . 2 4 AOE 73 | . . . . . . . . . . . . . . . . . . . . . . . 39 34 Terrain Rammed . | . . . . . . . . . . . . . . . . . . . . . . . . . Walls Destroyed . | . . . . . . . . . . . . . . . . . . . . . . . . . Machines Disabled . | . . . . . . . . . . . . . . . . . . . . . . . . . Actions | -11 -10 -10 -10 -9 -8 -8 -8 -7 -7 -7 -7 -6 -6 -5 -5 -5 -5 -4 -4 -4 -4 -3 -2 -1 --------- Run | Jun Mat Min Exi Min Mat Gar Mat Fac Gar Fac Gar Fac Gar Fac Gar Fac Gar Fac Gar Fac Gar Res Res Acc Total 18135 | . 1002 237 302 169 1614 1142 514 1238 841 555 849 859 575 878 488 42 882 102 1538 96 1291 381 1452 1088 Wait 2632 | . 74 6 . . 724 104 136 59 139 117 91 95 100 37 137 . 173 8 51 10 81 42 311 137 Move 13640 | . 823 231 300 169 748 832 320 1119 579 363 606 706 418 756 304 38 632 92 1327 77 1097 300 977 826 Hop . | . . . . . . . . . . . . . . . . . . . . . . . . . Pick Up 194 | . 18 . 1 . 15 30 4 6 13 5 12 7 7 11 5 . 8 . 23 1 4 1 12 11 Fast Attach 80 | . 3 . . . 2 7 4 5 2 2 12 3 . 2 4 2 1 . 2 . 14 2 4 9 Attach 85 | . 2 . . . 5 9 1 4 4 5 7 4 2 7 4 . 3 1 7 . 2 3 6 9 Detach 6 | . 1 . . . . . . 1 . 2 . . . 1 . . . . . . . . . 1 Swap 349 | . 10 . . . 19 23 18 14 28 9 27 19 10 16 9 . 17 1 19 4 19 11 37 39 Drop 238 | . 17 . 1 . 22 24 10 7 15 4 23 7 6 11 5 2 8 . 22 1 22 2 14 15 Fire 741 | . 53 . . . 63 76 14 18 52 45 61 11 10 35 16 . 32 . 87 3 29 18 80 38 Melee 154 | . . . . . 15 33 7 4 9 . 10 7 21 2 4 . 8 . . . 23 . 8 3 Ram . | . . . . . . . . . . . . . . . . . . . . . . . . . Kick . | . . . . . . . . . . . . . . . . . . . . . . . . . Crush 8 | . 1 . . . 1 . . 1 . 1 . . . . . . . . . . . 1 3 . Escape Stasis 4 | . . . . . . 2 . . . 2 . . . . . . . . . . . . . . Rewire 4 | . . . . . . 2 . . . . . . 1 . . . . . . . . 1 . . Trap . | . . . . . . . . . . . . . . . . . . . . . . . . . Miscellaneous . | . . . . . . . . . . . . . . . . . . . . . . . . . Route ------- -11/Junkyard -10/Materials (discovered 4 exits: [*Mat x3] / [*Min]) -10/Mines -10/Exiles -9/Mines -8/Materials (discovered 2 exits: *Fac / Gar) -8/Garrison (discovered 4 exits: *Mat x4) -8/Materials -7/Factory -7/Garrison (discovered 2 exits: *Fac x2) -7/Factory -7/Garrison (discovered 2 exits: *Fac x2) -6/Factory (discovered 4 exits: *Fac / [*Low] / [*Ext] / Gar) -6/Garrison -5/Factory -5/Garrison -5/Factory -5/Garrison (discovered 2 exits: *Fac x2) -4/Factory -4/Garrison (discovered 3 exits: *Fac x3) -4/Factory -4/Garrison (discovered 3 exits: *Res x3) -3/Research -2/Research -1/Access To Epsilon Eridani History --------- Turn | Location | Event 1 | -11/Junkyard | Discovered new exit (range 0) 1 | -11/Junkyard | Entered Materials 305 | -10/Materials | Discovered new exit (range 15) 310 | -10/Materials | Build established: Mutant 477 | -10/Materials | Discovered new exit (range 9) 590 | -10/Materials | Discovered new exit (range 16) 1419 | -10/Materials | Discovered new exit (range 9) 1567 | -10/Materials | Entered Mines 1844 | -10/Mines | Deemed a non-threat by the Exiles lab entrance 1845 | -10/Mines | Discovered new exit (range 5) 1943 | -10/Mines | Entered Exiles 1983 | -10/Exiles | Met 8R-AWN 2011 | -10/Exiles | Met EX-HEX 2087 | -10/Exiles | Met EX-DEC 2124 | -10/Exiles | Learned location of Zion (-6) 2172 | -10/Exiles | Met EX-BIN 2204 | -10/Exiles | Aligned with FarCom system 2206 | -10/Exiles | Given EX-Vault access code 2244 | -10/Exiles | Opened EX-Vault 2258 | -10/Exiles | Found Trap Reconfigurator 2292 | -10/Exiles | Warned to stay clear of 0b10 Research branches 2404 | -10/Exiles | Discovered new exit (range 14) 2425 | -10/Exiles | Left Exiles lab with Trap Reconfigurator 2425 | -10/Exiles | Entered Mines 2435 | -9/Mines | Discovered new exit (range 8) 2441 | -9/Mines | Learned location of Storage (-7) 2622 | -9/Mines | Assembled infested the area 2696 | -9/Mines | Entered Materials 2696 | -8/Materials | Evolved 4 slots: Propulsion x1, Utility x3 3019 | -8/Materials | Build established: Scavenger-Mutant 3808 | -8/Materials | Build established: Mutant 3898 | -8/Materials | Discovered new exit (range 14) 4233 | -8/Materials | Garrison activated, responded to threat 4351 | -8/Materials | Garrison activated, responded to threat 4960 | -8/Materials | Identified exit to Garrison 4960 | -8/Materials | Entered Garrison 5128 | -8/Garrison | Triggered checkpoint 5226 | -8/Garrison | Garrison Relay disabled 5326 | -8/Garrison | Triggered checkpoint 5402 | -8/Garrison | Discovered new exit (range 9) 5444 | -8/Garrison | Triggered checkpoint 5524 | -8/Garrison | Lost 3 parts (1p1n1w) 5653 | -8/Garrison | Garrison Relay disabled 5692 | -8/Garrison | Triggered checkpoint 5797 | -8/Garrison | Build established: Scavenger-Mutant 5830 | -8/Garrison | Core integrity fell below 50% 6046 | -8/Garrison | Triggered checkpoint 6068 | -8/Garrison | Triggered checkpoint 6143 | -8/Garrison | Discovered new exit (range 13) 6214 | -8/Garrison | Triggered checkpoint 6274 | -8/Garrison | Installed Relay Interface Framework 6288 | -8/Garrison | Garrison Relay disabled 6588 | -8/Garrison | Build established: Bothacker-Mutant 6590 | -8/Garrison | Triggered checkpoint 6654 | -8/Garrison | Discovered new exit (range 5) 6750 | -8/Garrison | Triggered checkpoint 6768 | -8/Garrison | Garrison Relay disabled 6848 | -8/Garrison | Discovered new exit (range 10) 6862 | -8/Garrison | Entered Materials 7555 | -8/Materials | Discovered new exit (range 31) 7774 | -8/Materials | Entered Factory 7774 | -7/Factory | Evolved 2 slots: Utility x2 8571 | -7/Factory | Cargo convoy interrupted 9856 | -7/Factory | Garrison activated, responded to threat 9881 | -7/Factory | Identified exit to Garrison 9881 | -7/Factory | Entered Garrison 9881 | -7/Garrison | Accompanied by 2 allies 10086 | -7/Garrison | Triggered checkpoint 10214 | -7/Garrison | Triggered checkpoint 10265 | -7/Garrison | Heavy support dispatched to Factory 10284 | -7/Garrison | Triggered checkpoint 10298 | -7/Garrison | P-60 Hacker assimilated allied Guardian 4c 10411 | -7/Garrison | Discovered new exit (range 11) 10462 | -7/Garrison | Triggered checkpoint 10536 | -7/Garrison | Expanded RIF knowledge: Robot Detection 10549 | -7/Garrison | Garrison Relay disabled 10948 | -7/Garrison | Discovered new exit (range 10) 10988 | -7/Garrison | Triggered checkpoint 11032 | -7/Garrison | Garrison Relay disabled 11163 | -7/Garrison | Entered Factory 11167 | -7/Factory | Identified exit to DSF 11992 | -7/Factory | Garrison activated, responded to threat 12082 | -7/Factory | Identified exit to Garrison 12082 | -7/Factory | Entered Garrison 12098 | -7/Garrison | Triggered checkpoint 12124 | -7/Garrison | Triggered checkpoint 12165 | -7/Garrison | Garrison Relay disabled 12363 | -7/Garrison | Garrison Relay disabled 12688 | -7/Garrison | Triggered checkpoint 12717 | -7/Garrison | Garrison Relay disabled 12772 | -7/Garrison | Triggered checkpoint 12793 | -7/Garrison | Triggered checkpoint 12932 | -7/Garrison | Triggered checkpoint 12966 | -7/Garrison | Garrison Relay disabled 13039 | -7/Garrison | Discovered new exit (range 8) 13174 | -7/Garrison | Triggered checkpoint 13228 | -7/Garrison | Garrison Relay disabled 13278 | -7/Garrison | Discovered new exit (range 9) 13294 | -7/Garrison | Expanded RIF knowledge: Zone Cloak 13385 | -7/Garrison | Entered Factory 13385 | -6/Factory | Evolved 2 slots: Propulsion x1, Utility x1 13647 | -6/Factory | Discovered new exit (range 53) 13735 | -6/Factory | First assault squad dispatched 14182 | -6/Factory | Found Prototype Processor 14182 | -6/Factory | Identified Exp. Targeting Computer 14186 | -6/Factory | Found Exp. Targeting Computer 14214 | -6/Factory | Repaired Adv. Weapon Cycler 14240 | -6/Factory | Discovered new exit (range 12) 14270 | -6/Factory | Discovered new exit (range 9) 14709 | -6/Factory | Identified exit to Garrison 14709 | -6/Factory | Entered Garrison 14746 | -6/Garrison | Triggered checkpoint 14784 | -6/Garrison | Garrison Relay disabled 14929 | -6/Garrison | Expanded RIF knowledge: Coupler Efficiency 15111 | -6/Garrison | Discovered new exit (range 8) 15146 | -6/Garrison | Triggered checkpoint 15179 | -6/Garrison | Garrison Relay disabled 15229 | -6/Garrison | Build established: Botlord-Mutant 15592 | -6/Garrison | Entered Factory 15592 | -5/Factory | Accompanied by 1 ally 15592 | -5/Factory | Evolved 2 slots: Utility x2 16131 | -5/Factory | Spotted B-75 Beast 16151 | -5/Factory | Destroyed B-75 Beast 17098 | -5/Factory | Identified exit to Garrison 17098 | -5/Factory | Entered Garrison 17105 | -5/Garrison | Spotted B-75 Beast 17208 | -5/Garrison | Triggered checkpoint 17226 | -5/Garrison | Assimilated Beast 6a with formatsys_high 17244 | -5/Garrison | Garrison Relay disabled 17392 | -5/Garrison | Triggered checkpoint 17424 | -5/Garrison | Discovered new exit (range 5) 17545 | -5/Garrison | System corruption reached 10% 17785 | -5/Garrison | Entered Factory 17785 | -5/Factory | Accompanied by 2 allies 17851 | -5/Factory | Identified exit to Garrison 17851 | -5/Factory | Entered Garrison 17851 | -5/Garrison | Accompanied by 2 allies 18188 | -5/Garrison | Triggered checkpoint 18208 | -5/Garrison | Garrison Relay disabled 18472 | -5/Garrison | Triggered checkpoint 18552 | -5/Garrison | Triggered checkpoint 18624 | -5/Garrison | Triggered checkpoint 18693 | -5/Garrison | Discovered new exit (range 13) 18738 | -5/Garrison | Triggered checkpoint 18745 | -5/Garrison | Garrison Relay disabled 18815 | -5/Garrison | Expanded RIF knowledge: Threat Obfuscation 19072 | -5/Garrison | Triggered checkpoint 19129 | -5/Garrison | Expanded RIF knowledge: Zone Cloak 19160 | -5/Garrison | Discovered new exit (range 12) 19178 | -5/Garrison | Entered Factory 19178 | -4/Factory | Evolved 2 slots: Utility x1, Weapon x1 19339 | -4/Factory | Identified exit to Garrison 19339 | -4/Factory | Entered Garrison 19466 | -4/Garrison | Triggered checkpoint 19494 | -4/Garrison | Triggered checkpoint 19499 | -4/Garrison | Garrison Relay disabled 19643 | -4/Garrison | Spotted B-86 Titan 19648 | -4/Garrison | Triggered checkpoint 19662 | -4/Garrison | Destroyed B-86 Titan 19686 | -4/Garrison | Triggered checkpoint 19728 | -4/Garrison | Triggered checkpoint 19797 | -4/Garrison | Build established: Botlord-Gunner 19906 | -4/Garrison | Discovered new exit (range 14) 20140 | -4/Garrison | Triggered checkpoint 20158 | -4/Garrison | Garrison Relay disabled 20436 | -4/Garrison | Discovered new exit (range 10) 20458 | -4/Garrison | Triggered checkpoint 20542 | -4/Garrison | Garrison Relay disabled 20840 | -4/Garrison | Discovered new exit (range 12) 20846 | -4/Garrison | Triggered checkpoint 20868 | -4/Garrison | Garrison Relay disabled 21000 | -4/Garrison | Triggered checkpoint 21004 | -4/Garrison | Garrison Relay disabled 21242 | -4/Garrison | Triggered checkpoint 21266 | -4/Garrison | Garrison Relay disabled 21365 | -4/Garrison | Expanded RIF knowledge: Code Merge 21553 | -4/Garrison | Found embedded Infiltrators 21738 | -4/Garrison | Build established: Botlord-Mutant 21774 | -4/Garrison | Entered Factory 21774 | -4/Factory | Accompanied by 7 allies 21895 | -4/Factory | Identified exit to Garrison 21920 | -4/Factory | Entered Garrison 21920 | -4/Garrison | Accompanied by 8 allies 21980 | -4/Garrison | Triggered checkpoint 22007 | -4/Garrison | Garrison Relay disabled 22089 | -4/Garrison | Spotted B-86 Titan 22094 | -4/Garrison | Triggered checkpoint 22095 | -4/Garrison | Assimilated Titan 7a with formatsys_high 22112 | -4/Garrison | Triggered checkpoint 22122 | -4/Garrison | Triggered checkpoint 22260 | -4/Garrison | Garrison Relay disabled 22322 | -4/Garrison | Discovered new exit (range 12) 22513 | -4/Garrison | Assimilated ARC 7a with formatsys_deep 22598 | -4/Garrison | Discovered new exit (range 10) 22721 | -4/Garrison | Learned Research security intel 22730 | -4/Garrison | Garrison Relay disabled 22850 | -4/Garrison | Triggered checkpoint 22919 | -4/Garrison | Sage 7a assimilated hostile W-44 Eye 22957 | -4/Garrison | Discovered new exit (range 14) 22972 | -4/Garrison | Found Fusion Bomb Launcher 23178 | -4/Garrison | Triggered checkpoint 23190 | -4/Garrison | Sage 7a assimilated hostile G-67 Veteran 23298 | -4/Garrison | Expanded RIF knowledge: Autoassimilate 23469 | -4/Garrison | Build established: Botlord-Gunner 23781 | -4/Garrison | Build established: Botlord-Mutant 23856 | -4/Garrison | Triggered checkpoint 24077 | -4/Garrison | Entered Research 24077 | -3/Research | Accompanied by 4 allies 24077 | -3/Research | Evolved 2 slots: Power x1, Utility x1 24327 | -3/Research | First assault squad dispatched 24431 | -3/Research | Discovered new exit (range 57) 24653 | -3/Research | Identified exit to Research 24656 | -3/Research | Entered another Research area 24656 | -2/Research | Accompanied by 2 allies 24656 | -2/Research | Evolved 2 slots: Utility x2 24802 | -2/Research | Build established: Botlord-Gunner 25344 | -2/Research | Discovered new exit (range 84) 25379 | -2/Research | Found Prototype Launcher 25379 | -2/Research | Identified Enh. Gamma Bomb Array 25406 | -2/Research | First assault squad dispatched 25576 | -2/Research | Assimilated ARC 9a with formatsys_deep 26066 | -2/Research | P-80 Master assimilated allied Champion 9a 26072 | -2/Research | P-80 Master assimilated allied Enforcer 9b 26081 | -2/Research | System corruption reached 10% 26449 | -2/Research | Spotted B-90 Cyclops 26513 | -2/Research | Assimilated ARC 9b with formatsys_deep 26671 | -2/Research | Spotted B-90 Cyclops 26681 | -2/Research | Allies destroyed B-90 Cyclops 26811 | -2/Research | Identified exit to Access 26813 | -2/Research | Entered Access 26813 | -1/Access | Accompanied by 1 ally 26813 | -1/Access | Evolved 2 slots: Utility x2 27051 | -1/Access | Build established: Botlord-Mutant 27305 | -1/Access | Garrison activated, responded to threat 27786 | -1/Access | Build established: Botlord-Gunner 27950 | -1/Access | Spotted B-99 Colossus 28109 | -1/Access | Garrison activated, responded to threat 28347 | -1/Access | Energy Cycler disabled 28434 | -1/Access | Discovered new exit (range 5) 28448 | *** | Escaped! Last Messages --------------- 28196_ Acquired Hvy. Machine Gun. 28197_ U-05 Engineer lays Concrete. 28216_ U-05 Engineer builds a Wall. 28222_ U-05 Engineer lays Concrete. 28232_ U-05 Engineer builds a Wall. 28245_ U-05 Engineer lays Concrete. 28247_ System corrupted: Component data lost. 28247_ U-05 Engineer lays Concrete. 28347_ Slug penetrates Energy Cycler. 28347_ ALERT: Power surge detected, dispatching additional patrols. 28347_ Energy Cycler explodes. 28420_ Acquired 15 matter. 28421_ Discarded Hacking Suite. 28422_ Discarded System Shield. 28434_ The Access Shell folds into the floor. 28434_ EXIT=FOUND 28442_ Dropped Railgun. 28443_ Dropped Adv. KE Penetrator. 28444_ Acquired Railgun. 28447_ Acquired Adv. KE Penetrator. Map ----- +----------------------------------------------------+ | ????# #?# """"" #? ""# ???###### | | ##### #?# #??? # ????# | | + #?# #????? # ?????# | | ^# #?#######+#############+## """""???? # | | ! # ######## ## """""" # " | | + + """""" # "" | | # ###########+########## ## """""" # | | " # #??????# #????# ## """""" " | | # #??????# #????# ## " | | # #??????# #????# ## " | | ##### #??????# #???## ## " | | ????# #??????# #???# ###+#########" | | ##### #??????# #???# #??#" | | #??????# #???# * #??#" | | ##+#######???# #???# ####### #???"""" " | | #???# #???######?????# #???# | | #???##########??????????????# #???# # | | #???????????????????????????# #???# # | | #???????????????????????????# #???# # | | #???????????????????###?????# #???# # | | #??????????########## ####### #???# # | | ! #??????????" #???# # | | % #????BB????" #???# ##+# | | ####"#+###????BB????" #???# # | | ??? ???????????" #???# # | | ??? %? ??????????" "@ #???# # | | ??? ?????????" "" Y #???# # ! | | ??? ? ???????" #???# + | | ??# ### BB????" #???# # | | ??# #?? BB????" """ """ ##### # | | ??# #??? ???" """T""" ## + | | ?? #????######??########## ####### ## #### | | ?? #?????????????????????###?????# ## #??#### | | ?? #?????????????????????????????# ## #?????? | | ?? #?????????????????????????????# #?????? | | ??# #?????????????????????????????# #?????? | | ??? ??????????????????????????????# #?????? | | ### #?????????????????????????????# #?????? | | #?????????????????????????????# #????## | | #?????????????????????????????# ###### | | +??????????????????############ #### # | | #????????????????? # | | #????????????????? # | | #??????????????????############ / | | #?????????????????????????????#"" # | | " #?????????????????????????????#"" ## | | """ #?????????????????????????????#"" ## | | """ #?????????????????????????????#G ## | | """" #?????????????????????????????#"" ### | | """ #?????????????????????????????#"" #? | +----------------------------------------------------+ Best States ------------- Heat Dissipation 83 Energy Generation 41 Energy Capacity 580 Matter Stores 300 Matter Capacity 300 Sight Range 16 Terrain Scan Density 10 Additional Mass Support 9 Armor Coverage 2100 Resistance: KI 20 Resistance: EM 25 Weapon Cycling 25 Phase Shifting 15 Evasion (%) 55 Targeting Accuracy 24 Target Analysis 12 Recoil Reduction 4 Matter Filtering 30 Kinecelleration 40 Offensive Hacking 10 Defensive Hacking 10 Relay Coupler Types 5 Relay Coupler Value 239 Item Schematics ----------------- Remote Datajack | -7/Factory | Scanalyzed Robot Schematics ------------------ None Fabricated ------------ Nothing Alien Tech Used ----------------- None Achievements -------------- Gun Specialist Challenges ------------ None Game ------ Seed LayeredColdRedirector Manual? 0 Play Time 06:22:04 Cumulative 239.7 hours Start 2023.03.11 @ 21:21:26 End 2023.04.09 @ 00:11:09 Sessions 5 Manual Loads 0 Difficulty Rogue Special Mode None Game No. 94 Rogue 90 Adventurer 4 Explorer 0 Win Type 0 Total 13 Types 11/0/1/1/0/0/0/0/0 Lore% 74 Gallery% 81 Achievement% 65 Wizard Run 0 Options --------- ASCII 0 Keyboard 0 Movement Numpad Keybinds 0 Fullscreen 2 Font 18/Terminus Map View 76x50 Tactical HUD 1 Map Filters NONE Filters NONE Steam 0 RUN: a1c1b08e-00f5-4b7d-a3bd-042e74940c72